bitfinex/quotes_SOLUSD_20250624
["timestamp","ask_amount","ask_price","bid_price","bid_amount"]
[1750780087687,6.42,144.22,144.19,6.62633309]
[1750780087894,6.42,144.22,144.2,6.62633309]
[1750780088114,6.42,144.22,144.21,6.62633309]
[1750780089690,6.42,144.22,144.19,6.76849466]
[1750780089897,6.42,144.22,144.2,6.62633309]
[1750780091697,13.35396559,144.22,144.19,6.62633309]
[1750780091896,13.35396559,144.22,144.17,18.64964886]
[1750780092096,13.35396559,144.22,144.18,6.62633309]
[1750780092903,6.42,144.22,144.17,18.64964886]
[1750780093099,6.42,144.22,144.19,6.62633309]
[1750780094012,6.42,144.22,144.2,6.62633309]
[1750780095115,6.42,144.22,144.18,6.93576796]
[1750780095322,6.42,144.22,144.2,6.62633309]
[1750780095845,6.42,144.22,144.2,13.56114474]
[1750780096497,6.42,144.22,144.21,6.62633309]
[1750780097921,6.42,144.22,144.21,13.56066496]
[1750780098502,6.42,144.22,144.21,6.93433187]
[1750780098703,6.42,144.22,144.21,13.56066496]
[1750780100026,6.42,144.22,144.21,32.35247539]
[1750780100729,44.98,144.26,144.22,18.79181043]
[1750780100899,44.98,144.26,144.24,6.62633309]
[1750780101602,6.4,144.27,144.25,6.62633309]
[1750780102309,6.4,144.27,144.23,6.93316609]
[1750780102513,6.4,144.27,144.25,6.62633309]
[1750780102905,6.4,144.27,144.26,6.62633309]
[1750780103801,6.4,144.27,144.23,18.79181043]
[1750780104112,13.02633309,144.27,144.23,6.62633309]
[1750780104309,6.4,144.27,144.22,6.93350891]
[1750780104701,6.4,144.27,144.26,6.62633309]
[1750780105718,6.4,144.27,144.26,6.62633309]
[1750780107006,6.4,144.27,144.26,32.35007198]
[1750780107199,6.4,144.27,144.26,25.72373889]
[1750780107429,6.4,144.27,144.26,32.35007198]
[1750780107621,153.0,144.32,144.26,32.35007198]
[1750780107807,6.4,144.32,144.28,6.62633309]
[1750780108008,13.32931918,144.32,144.28,6.62633309]
[1750780110416,19.95565227,144.32,144.28,6.62633309]
[1750780110616,13.32931918,144.32,144.28,6.62633309]
[1750780110923,19.95565227,144.32,144.28,6.62633309]
[1750780111229,13.32931918,144.32,144.28,6.62633309]
[1750780111529,13.32931918,144.32,144.29,6.62633309]
[1750780111827,13.32931918,144.32,144.27,6.93144711]
[1750780111828,6.62633309,144.31,144.27,6.62633309]
[1750780111999,6.62633309,144.3,144.25,6.62633309]
[1750780112826,6.62633309,144.31,144.27,6.62633309]
[1750780113136,19.95553083,144.32,144.28,6.62633309]
[1750780113340,13.32919774,144.32,144.28,6.62633309]
[1750780113718,19.95553083,144.32,144.28,6.62633309]
[1750780113929,19.95553083,144.32,144.27,6.62633309]
[1750780114426,13.32919774,144.32,144.27,6.62633309]
[1750780114612,19.95553083,144.32,144.28,6.62633309]
[1750780115711,19.95553083,144.32,144.26,6.93179741]
[1750780115927,19.95553083,144.32,144.27,6.62633309]
[1750780116326,19.95553083,144.32,144.26,6.93179741]
[1750780116656,6.62633309,144.31,144.26,18.79181043]
[1750780116827,6.62633309,144.31,144.27,6.62633309]
[1750780117539,6.62633309,144.31,144.25,6.93239932]
[1750780117712,13.55634002,144.3,144.26,6.62633309]
[1750780118116,6.92971175,144.31,144.27,6.62633309]
[1750780118326,19.95554298,144.32,144.28,6.62633309]
[1750780118728,13.32920989,144.32,144.28,6.62633309]
[1750780119125,19.95554298,144.32,144.28,6.62633309]
[1750780119638,19.95554298,144.32,144.26,6.93192846]
[1750780119938,19.95554298,144.32,144.28,6.62633309]
[1750780120140,13.32920989,144.32,144.28,6.62633309]
[1750780120526,13.32920989,144.32,144.29,6.62633309]
[1750780121036,13.32920989,144.32,144.28,6.62633309]
[1750780121624,13.32920989,144.32,144.27,6.62633309]
[1750780121625,19.95554298,144.32,144.27,6.62633309]
[1750780121838,19.95554298,144.32,144.21,1.5301]
[1750780121839,6.62633309,144.29,144.21,1.5301]
[1750780122044,6.62633309,144.28,144.23,6.62633309]
[1750780122540,6.62633309,144.29,144.25,6.62633309]
[1750780122726,6.93079783,144.29,144.25,6.62633309]
[1750780122926,13.55713092,144.29,144.25,6.62633309]
[1750780123325,6.93079783,144.29,144.25,6.62633309]
[1750780123639,13.55647093,144.3,144.26,6.62633309]
[1750780123937,13.55647093,144.3,144.23,7.07553188]
[1750780124160,13.55647093,144.3,144.25,6.62633309]
[1750780124444,6.62633309,144.29,144.25,6.62633309]
[1750780124640,13.55699951,144.29,144.24,13.55912113]
[1750780124852,6.62633309,144.27,144.23,6.62633309]
[1750780125056,6.62633309,144.28,144.23,6.62633309]
[1750780125215,6.62633309,144.28,144.24,6.62633309]
[1750780125616,6.62633309,144.28,144.22,18.64964886]
[1750780125617,6.62633309,144.28,144.23,6.62633309]
[1750780125819,6.62633309,144.27,144.22,6.62633309]
[1750780126038,6.48,144.26,144.22,6.62633309]
[1750780127336,13.41192996,144.26,144.21,6.93433187]
[1750780127525,6.48,144.26,144.21,6.93433187]
[1750780127726,6.48,144.26,144.23,6.62633309]
[1750780128548,6.48,144.26,144.24,6.62633309]
[1750780128738,6.48,144.26,144.25,6.62633309]
[1750780128951,6.48,144.26,144.25,13.5587421]
[1750780129265,6.48,144.26,144.22,25.72566149]
[1750780129558,6.48,144.26,144.24,6.62633309]
[1750780130129,6.48,144.26,144.25,6.62633309]
[1750780132749,6.48,144.26,144.24,13.55903463]
[1750780133163,6.48,144.26,144.25,6.62633309]
[1750780134849,6.48,144.26,144.22,6.93385106]
[1750780135059,6.48,144.26,144.25,6.62633309]
[1750780137971,6.48,144.26,144.25,13.5587421]
[1750780140484,6.48,144.26,144.23,6.62633309]
[1750780141357,6.48,144.26,144.22,6.93385106]
[1750780141554,6.48,144.26,144.24,6.62633309]
[1750780142472,6.48,144.26,144.23,6.62633309]
[1750780143268,6.48,144.26,144.25,6.62633309]
[1750780144371,6.48,144.26,144.25,13.5587421]
[1750780150687,6.48,144.26,144.25,6.62633309]
[1750780150857,6.48,144.26,144.24,6.62633309]
[1750780152289,6.48,144.26,144.25,6.62633309]
[1750780152867,6.48,144.26,144.25,13.5587421]
[1750780156987,5.08284709,144.3,144.26,18.64964886]
[1750780157180,6.42,144.31,144.29,6.62633309]
[1750780157490,6.42,144.31,144.3,6.62633309]
[1750780158687,6.5387,144.29,144.2,6.62633309]
[1750780158987,13.56102369,144.21,144.16,6.62633309]
[1750780159199,6.42,144.2,144.16,6.62633309]
[1750780159694,13.04633309,144.2,144.15,6.62633309]
[1750780159871,6.62633309,144.18,144.13,6.62633309]
[1750780160074,6.62633309,144.18,144.13,25.27598195]
[1750780160876,6.62633309,144.18,144.14,6.62633309]
[1750780161090,13.56211723,144.18,144.13,18.64964886]
[1750780161277,13.56211723,144.18,144.14,6.62633309]
[1750780162093,6.93538492,144.19,144.14,6.62633309]
[1750780162398,13.04633309,144.2,144.15,6.62633309]
[1750780162981,19.98118623,144.2,144.16,6.62633309]
[1750780163791,19.98118623,144.2,144.15,6.9371851]
[1750780164003,6.62633309,144.19,144.14,6.62633309]
[1750780164297,6.62633309,144.18,144.13,6.62633309]
[1750780164593,6.62633309,144.18,144.14,6.62633309]
[1750780164799,6.62633309,144.18,144.13,6.62633309]
[1750780165101,6.62633309,144.18,144.13,13.56430845]
[1750780165266,6.62633309,144.18,144.14,6.62633309]
[1750780165887,13.35498135,144.2,144.15,6.62633309]
[1750780166205,19.98131444,144.2,144.15,6.62633309]
[1750780166389,6.62633309,144.19,144.15,6.62633309]
[1750780167511,6.62633309,144.19,144.15,13.56335987]
[1750780167726,13.04633309,144.2,144.16,6.62633309]
[1750780168907,6.42,144.2,144.16,6.62633309]
[1750780169122,6.42,144.2,144.18,6.62633309]
[1750780169484,2.92,144.2,144.16,25.72854738]
[1750780169685,2.92,144.2,144.18,6.62633309]
[1750780170624,2.92,144.2,144.19,6.62633309]
[1750780171116,2.92,144.2,144.17,18.79181043]
[1750780171279,2.92,144.2,144.19,6.62633309]
[1750780172097,6.44,144.24,144.19,25.27598195]
[1750780172397,6.44,144.24,144.21,6.62633309]
[1750780172586,6.44,144.24,144.23,6.62633309]
[1750780173307,6.44,144.24,144.23,32.35151383]
[1750780173694,6.44,144.24,144.21,6.62633309]
[1750780174104,6.44,144.24,144.17,6.62633309]
[1750780174105,13.37311571,144.24,144.17,6.62633309]
[1750780174306,6.44,144.24,144.15,42.92991246]
[1750780174503,6.62633309,144.23,144.19,6.62633309]
[1750780175009,6.62633309,144.23,144.18,6.62633309]
[1750780175714,13.55995908,144.23,144.18,6.62633309]
[1750780176103,6.62633309,144.23,144.18,13.56207175]
[1750780177009,13.37309046,144.24,144.19,6.62633309]
[1750780177200,19.99942355,144.24,144.19,6.62633309]
[1750780177611,13.06633309,144.24,144.19,13.56156529]
[1750780178003,19.99932299,144.24,144.19,13.56156529]
[1750780178818,6.62633309,144.23,144.18,13.56191506]
[1750780181122,19.99932299,144.24,144.19,6.62633309]
[1750780181293,13.3729899,144.24,144.2,6.62633309]
[1750780181693,6.44,144.24,144.2,6.62633309]
[1750780182225,13.06633309,144.24,144.2,6.62633309]
[1750780182397,6.44,144.24,144.2,6.62633309]
[1750780182807,6.44,144.24,144.21,6.62633309]
[1750780183032,6.44,144.24,144.17,18.79181043]
[1750780183315,6.44,144.24,144.21,6.62633309]
[1750780183930,6.44,144.24,144.2,6.62633309]
[1750780184345,6.62633309,144.21,144.14,0.69339568]
[1750780184630,6.62633309,144.18,144.13,6.62633309]
[1750780184840,6.52,144.17,144.13,6.62633309]
[1750780185205,6.52,144.17,144.13,13.56405348]
[1750780185411,6.52,144.17,144.14,6.62633309]
[1750780186508,6.52,144.17,144.13,13.56405348]
[1750780187325,13.14633309,144.17,144.13,13.56405348]
[1750780187528,20.08259042,144.17,144.13,6.93772039]
[1750780188002,13.14633309,144.17,144.13,6.93772039]
[1750780189002,20.08262429,144.17,144.13,6.93772039]
[1750780189500,6.62633309,144.15,144.09,1.5765]
[1750780189701,13.4562912,144.17,144.1,18.64964886]
[1750780189702,6.62633309,144.13,144.1,18.64964886]
[1750780190325,6.62633309,144.14,144.1,18.64964886]
[1750780191016,6.62633309,144.14,144.1,25.27598195]
[1750780191747,6.62633309,144.14,144.1,32.21513946]
[1750780192819,6.62633309,144.15,144.1,32.21513946]
[1750780193132,6.62633309,144.16,144.12,6.62633309]
[1750780193608,13.14633309,144.17,144.12,6.62633309]
[1750780193806,6.52,144.17,144.13,18.79181043]
[1750780194027,6.54,144.16,144.14,6.62633309]
[1750780194216,6.54,144.16,144.13,25.41814352]
[1750780194637,6.54,144.16,144.14,6.62633309]
[1750780195308,6.54,144.16,144.14,13.56360769]
[1750780195507,6.54,144.16,144.15,6.62633309]
[1750780195709,6.54,144.16,144.14,13.56360769]
[1750780196230,6.54,144.16,144.12,6.62633309]
[1750780196406,13.16633309,144.16,144.12,6.62633309]
[1750780196609,20.10314138,144.16,144.11,25.73095413]
[1750780196829,6.62633309,144.14,144.1,6.62633309]
[1750780197133,6.62633309,144.15,144.1,6.62633309]
[1750780197317,6.62633309,144.15,144.11,6.62633309]
[1750780198139,6.62633309,144.14,144.1,6.62633309]
[1750780198441,13.56360134,144.15,144.1,6.62633309]
[1750780198930,13.56360134,144.15,144.1,13.56590919]
[1750780199432,6.62633309,144.14,144.09,13.56622172]
[1750780199727,6.62633309,144.13,144.08,25.41814352]
[1750780199929,6.62633309,144.13,144.08,25.27598195]
[1750780200111,6.62633309,144.13,144.08,32.21617071]
[1750780200426,6.62633309,144.14,144.1,6.62633309]
[1750780200823,6.62633309,144.14,144.09,6.62633309]
[1750780201623,13.56438605,144.14,144.09,6.62633309]
[1750780201838,13.56438605,144.14,144.09,13.56630742]
[1750780202328,6.62633309,144.13,144.09,13.56630742]
[1750780204030,13.56452623,144.13,144.06,25.34221043]
[1750780204245,6.62633309,144.13,144.08,6.62633309]
[1750780204533,15.21868142,144.15,144.1,6.62633309]
[1750780204736,6.62633309,144.14,144.09,6.62633309]
[1750780205434,13.56451389,144.13,144.09,6.62633309]
[1750780206013,6.62633309,144.14,144.09,13.56639878]
[1750780206229,6.62633309,144.14,144.1,6.62633309]
[1750780206532,6.62633309,144.14,144.09,13.56639878]
[1750780206735,6.62633309,144.14,144.1,6.62633309]
[1750780208434,6.62633309,144.14,144.11,6.9391437]
[1750780208633,32.54,144.16,144.13,6.62633309]
[1750780208634,6.46,144.16,144.13,6.62633309]
[1750780208822,6.46,144.16,144.14,6.62633309]
[1750780210533,6.46,144.16,144.14,13.56368094]
[1750780211725,6.46,144.16,144.14,6.93734785]
[1750780212036,6.46,144.16,144.15,6.62633309]
[1750780212437,6.46,144.16,144.15,13.56355126]
[1750780214343,1.5281,144.23,144.16,18.79181043]
[1750780214533,1.5281,144.23,144.18,6.62633309]
[1750780214534,6.46,144.22,144.18,6.62633309]
[1750780215818,6.46,144.22,144.19,6.62633309]
[1750780216448,6.46,144.22,144.19,13.56147359]
[1750780217342,13.39385655,144.22,144.19,6.62633309]
[1750780217534,13.39385655,144.22,144.17,6.93597984]
[1750780217733,13.39385655,144.22,144.13,26.0]
[1750780217734,6.62633309,144.18,144.13,18.64964886]
[1750780217935,32.62633309,144.19,144.14,6.62633309]
[1750780218519,6.9362558,144.17,144.14,6.62633309]
[1750780218825,6.46,144.16,144.14,6.62633309]
[1750780220252,6.46,144.16,144.13,13.5644711]
[1750780220645,6.46,144.16,144.13,6.62633309]
[1750780221637,13.39687791,144.16,144.12,6.93843401]
[1750780221839,13.39687791,144.16,144.12,13.5647671]
[1750780221840,6.46,144.16,144.12,13.5647671]
[1750780222033,6.46,144.16,144.14,6.62633309]
[1750780222731,6.46,144.16,144.14,13.56398341]
[1750780222940,6.46,144.16,144.13,6.93796063]
[1750780223261,6.46,144.16,144.14,6.62633309]
[1750780224156,6.46,144.16,144.13,13.56429372]
[1750780224844,25.9110636,144.15,144.06,6.94155213]
[1750780225149,25.9110636,144.15,144.04,5.58713227]
[1750780225150,6.62633309,144.1,144.04,6.94251596]
[1750780225351,6.46,144.09,144.05,6.62633309]
[1750780225652,6.46,144.09,144.06,6.62633309]
[1750780226368,13.62880865,144.15,144.08,25.27598195]
[1750780226531,6.46,144.14,144.13,6.62633309]
[1750780227242,6.46,144.14,144.12,13.56493471]
[1750780227452,6.46,144.14,144.13,6.62633309]
[1750780227965,6.46,144.18,144.14,0.14216157]
[1750780228134,6.46,144.18,144.16,6.62633309]
[1750780228327,6.46,144.18,144.17,6.62633309]
[1750780229265,6.46,144.18,144.17,13.56258889]
[1750780230248,6.46,144.18,144.17,6.9362558]
[1750780230434,6.46,144.18,144.17,13.56258889]
[1750780230831,6.46,144.18,144.14,18.79181043]
[1750780230832,6.46,144.18,144.14,0.14216157]
[1750780231054,6.46,144.22,144.18,18.79181043]
[1750780231361,6.46,144.22,144.2,6.62633309]
[1750780233263,6.46,144.22,144.18,7.07774075]
[1750780233459,6.46,144.22,144.2,6.62633309]
[1750780234551,26.0,144.24,144.21,25.27598195]
[1750780234748,51.4,144.26,144.23,6.62633309]
[1750780236039,51.4,144.26,144.24,6.62633309]
[1750780236541,6.46,144.26,144.25,13.5587421]
[1750780236786,6.46,144.26,144.25,32.35055253]
[1750780237055,32.46,144.31,144.26,18.79181043]
[1750780237364,39.38957392,144.31,144.27,6.62633309]
[1750780237660,32.46,144.31,144.27,6.62633309]
[1750780238157,26.0,144.31,144.27,6.62633309]
[1750780238334,39.38957831,144.31,144.27,6.62633309]
[1750780238746,32.46,144.31,144.28,6.62633309]
[1750780239042,26.0,144.29,144.28,6.62633309]
[1750780239240,6.52,144.31,144.28,6.62633309]
[1750780239439,26.0,144.3,144.28,6.62633309]
[1750780239646,6.52,144.31,144.26,7.07385424]
[1750780239955,6.52,144.31,144.3,6.62633309]
[1750780240758,13.44963362,144.31,144.23,26.0]
[1750780240965,20.07596671,144.31,144.27,6.62633309]
[1750780241138,13.44963362,144.31,144.27,6.62633309]
[1750780241334,13.44963362,144.31,144.24,25.72470005]
[1750780241335,6.52,144.31,144.28,6.62633309]
[1750780241541,6.52,144.31,144.3,6.62633309]
[1750780241959,6.52,144.31,144.25,0.14216157]
[1750780241960,6.52,144.31,144.25,18.64964886]
[1750780242259,6.52,144.31,144.3,6.62633309]
[1750780243436,6.52,144.31,144.3,32.34815045]
[1750780245341,6.52,144.36,144.31,18.79181043]
[1750780245547,6.52,144.36,144.31,0.14216157]
[1750780245745,6.52,144.36,144.32,6.62633309]
[1750780246860,6.52,144.36,144.32,13.55529535]
[1750780247170,6.52,144.36,144.34,6.62633309]
[1750780247386,6.52,144.36,144.32,6.92896226]
[1750780247387,6.52,144.36,144.35,25.41814352]
[1750780247938,8.54614271,144.42,144.35,25.41814352]
[1750780247939,6.52,144.41,144.35,25.41814352]
[1750780248162,6.52,144.41,144.4,6.62633309]
[1750780248361,6.52,144.41,144.4,25.41814352]
[1750780248547,6.92041522,144.5,144.4,25.41814352]
[1750780248749,6.52,144.49,144.46,6.62633309]
[1750780248948,6.52,144.49,144.48,6.62633309]
[1750780249171,6.52,144.49,144.47,6.62633309]
[1750780249348,6.52,144.49,144.42,6.92424871]
[1750780249349,13.14633309,144.49,144.42,6.92424871]
[1750780249542,6.52,144.49,144.45,6.62633309]
[1750780249783,6.52,144.49,144.46,6.62633309]
[1750780250473,13.44100564,144.49,144.43,0.14216157]
[1750780250676,10.97534689,144.48,144.43,18.79181043]
[1750780250875,6.92185103,144.48,144.43,29.76715732]
[1750780251171,17.89719792,144.48,144.44,10.97534689]
[1750780251368,17.89719792,144.48,144.43,10.97534689]
[1750780251560,10.97534689,144.47,144.42,10.97534689]
[1750780251828,26.0,144.45,144.42,10.97534689]
[1750780252145,36.97534689,144.45,144.4,10.97534689]
[1750780252343,10.97534689,144.44,144.4,10.97534689]
[1750780252568,36.97534689,144.45,144.4,10.97534689]
[1750780252976,10.97534689,144.47,144.43,10.97534689]
[1750780253159,32.52,144.49,144.4,35.21351376]
[1750780253365,32.52,144.49,144.46,10.97534689]
[1750780253571,6.52,144.49,144.45,10.97534689]
[1750780253761,43.49534689,144.49,144.45,10.97534689]
[1750780254152,43.49534689,144.49,144.44,10.97534689]
[1750780254660,10.97534689,144.47,144.42,29.76715732]
[1750780254869,10.97534689,144.47,144.4,6.92520775]
[1750780255061,10.97534689,144.46,144.41,10.97534689]
[1750780255258,10.97534689,144.46,144.4,6.92520775]
[1750780255461,10.97534689,144.44,144.4,10.97534689]
[1750780255669,30.74324387,144.49,144.4,10.97534689]
[1750780255871,10.97534689,144.44,144.39,29.62499575]
[1750780256184,6.5,144.43,144.4,10.97534689]
[1750780256764,6.5,144.43,144.4,17.90034573]
[1750780257181,6.5,144.43,144.4,10.97534689]
[1750780258376,6.5,144.43,144.39,10.97534689]
[1750780258686,6.5,144.43,144.42,10.97534689]
[1750780258884,6.5,144.43,144.41,17.89997444]
[1750780259317,100.63418031,144.52,144.43,18.64964886]
[1750780259318,6.5,144.48,144.43,18.64964886]
[1750780259599,6.5,144.48,144.45,10.97534689]
[1750780260099,6.5,144.48,144.46,10.97534689]
[1750780260995,6.5,144.48,144.43,18.64964886]
[1750780260996,6.5,144.48,144.44,11.11750846]
[1750780261297,6.5,144.48,144.47,11.11750846]
[1750780261595,6.5,144.53,144.48,0.14216157]
[1750780261884,6.5,144.53,144.5,10.97534689]
[1750780262299,6.5,144.53,144.48,0.14216157]
[1750780262467,6.5,144.53,144.48,11.11750846]
[1750780262666,24.39436948,144.53,144.48,29.76715732]
[1750780262881,17.47534689,144.53,144.49,10.97534689]
[1750780263194,6.5,144.53,144.5,10.97534689]
[1750780263571,6.5,144.53,144.48,25.71312932]
[1750780263773,6.5,144.53,144.5,10.97534689]
[1750780263994,6.5,144.53,144.49,10.97534689]
[1750780264368,6.5,144.53,144.5,10.97534689]
[1750780264567,6.5,144.53,144.52,10.97534689]
[1750780265186,1.4495061,144.57,144.52,36.68661483]
[1750780265380,1.4495061,144.57,144.54,10.97534689]
[1750780266086,1.4495061,144.57,144.55,10.97534689]
[1750780266404,19.3419398,144.57,144.53,10.97534689]
[1750780266570,19.3419398,144.57,144.52,10.97534689]
[1750780266768,12.42485299,144.57,144.52,10.97534689]
[1750780266980,1.4495061,144.57,144.53,10.97534689]
[1750780267278,27.4495061,144.57,144.55,10.97534689]
[1750780267781,27.4495061,144.57,144.54,10.97534689]
[1750780267991,44.74216709,144.57,144.48,6.92131684]
[1750780268189,51.65923894,144.57,144.49,10.97534689]
[1750780268390,34.36657795,144.57,144.49,18.64964886]
[1750780268584,45.34192484,144.57,144.52,10.97534689]
[1750780268785,6.91802144,144.55,144.51,10.97534689]
[1750780268987,10.97534689,144.53,144.49,10.97534689]
[1750780269189,10.97534689,144.53,144.48,10.97534689]
[1750780269392,26.0,144.53,144.48,10.97534689]
[1750780269604,36.97534689,144.53,144.48,10.97534689]
[1750780269897,10.97534689,144.5,144.46,10.97534689]
[1750780270099,10.97534689,144.47,144.39,7.7783]
[1750780270302,10.97534689,144.45,144.41,10.97534689]
[1750780270800,6.92233144,144.46,144.42,10.97534689]
[1750780270995,17.89767833,144.46,144.42,10.97534689]
[1750780271384,24.83737066,144.47,144.42,17.89959439]
[1750780271584,24.83737066,144.47,144.43,10.97534689]
[1750780271813,10.97534689,144.46,144.42,10.97534689]
[1750780271984,10.97534689,144.46,144.41,6.92456394]
[1750780272188,10.97534689,144.44,144.39,18.64964886]
[1750780272492,10.97534689,144.46,144.41,10.97534689]
[1750780272697,10.97534689,144.46,144.42,10.97534689]
[1750780272878,10.97534689,144.46,144.41,18.79181043]
[1750780272879,17.89779908,144.46,144.41,18.79181043]
[1750780273078,17.89779908,144.46,144.41,29.76715732]
[1750780273794,10.97534689,144.46,144.41,29.76715732]
[1750780274096,10.97534689,144.46,144.41,18.79181043]
[1750780274294,6.94,144.47,144.44,10.97534689]
[1750780274595,6.94,144.47,144.45,10.97534689]
[1750780274772,32.94,144.47,144.46,10.97534689]
[1750780274974,6.94,144.47,144.46,10.97534689]
[1750780275187,6.94,144.47,144.46,36.68948876]
[1750780275398,17.89495346,144.52,144.47,18.79181043]
[1750780275399,6.94,144.52,144.47,18.79181043]
[1750780275586,6.94,144.52,144.48,10.97534689]
[1750780277082,6.94,144.52,144.49,10.97534689]
[1750780277594,6.94,144.52,144.48,6.9213554]
[1750780277776,6.94,144.52,144.49,10.97534689]
[1750780277979,13.8594796,144.52,144.49,10.97534689]
[1750780278183,13.8594796,144.52,144.48,10.97534689]
[1750780278582,24.83482649,144.52,144.48,10.97534689]
[1750780278788,10.97534689,144.51,144.46,17.8976591]
[1750780279222,10.97534689,144.5,144.46,10.97534689]
[1750780279524,10.97534689,144.49,144.44,18.79181043]
[1750780279692,10.97534689,144.48,144.44,18.79181043]
[1750780279890,10.97534689,144.49,144.44,29.76715732]
[1750780280214,36.97534689,144.48,144.44,10.97534689]
[1750780280714,36.97534689,144.48,144.41,18.64964886]
[1750780280715,10.97534689,144.46,144.41,18.64964886]
[1750780280919,26.0,144.48,144.39,17.90091542]
[1750780280920,10.97534689,144.44,144.39,17.90091542]
[1750780281081,10.97534689,144.42,144.37,6.92664681]
[1750780281281,17.89928804,144.43,144.38,10.97534689]
[1750780281500,10.97534689,144.43,144.38,29.62499575]
[1750780281682,24.83881147,144.44,144.39,10.97534689]
[1750780282079,22.94824682,144.44,144.39,10.97534689]
[1750780282285,17.91534689,144.44,144.4,10.97534689]
[1750780282683,6.94,144.44,144.4,10.97534689]
[1750780283405,6.94,144.44,144.41,17.90007509]
[1750780283714,6.94,144.44,144.41,10.97534689]
[1750780283919,17.91534689,144.44,144.4,0.14216157]
[1750780284096,6.94,144.44,144.4,11.11750846]
[1750780284406,6.94,144.44,144.41,10.97534689]
[1750780285407,6.94,144.44,144.41,17.89999061]
[1750780285785,6.94,144.44,144.41,10.97534689]
[1750780286594,24.83884989,144.44,144.39,36.55060548]
[1750780286990,17.91534689,144.44,144.4,10.97534689]
[1750780287914,17.91534689,144.44,144.4,17.90053725]
[1750780288721,10.97534689,144.43,144.39,17.90086055]
[1750780289299,10.97534689,144.43,144.38,17.90130313]
[1750780289821,10.97534689,144.42,144.38,10.97534689]
[1750780290125,17.90007509,144.41,144.36,36.69407968]
[1750780290295,16.00824682,144.42,144.37,10.97534689]
[1750780290500,31.03289993,144.43,144.39,10.97534689]
[1750780290904,48.9320268,144.43,144.39,10.97534689]
[1750780291122,48.9320268,144.43,144.38,10.97534689]
[1750780291905,10.97534689,144.42,144.36,25.71873279]
[1750780292120,22.93251817,144.42,144.37,10.97534689]
[1750780292427,16.00824682,144.41,144.36,17.90226925]
[1750780292621,5.03289993,144.41,144.4,10.97534689]
[1750780292924,31.03289993,144.43,144.4,10.97534689]
[1750780293299,26.0,144.43,144.4,10.97534689]
[1750780293496,11.97289993,144.44,144.41,10.97534689]
[1750780293704,6.94,144.44,144.41,10.97534689]
[1750780294326,6.94,144.44,144.39,0.14216157]
[1750780294327,6.94,144.44,144.4,0.14216157]
[1750780294631,6.94,144.44,144.42,10.97534689]
[1750780295812,6.94,144.44,144.38,6.92616705]
[1750780296019,17.91534689,144.44,144.39,10.97534689]
[1750780296200,6.94,144.44,144.41,10.97534689]
[1750780296524,6.94,144.44,144.42,10.97534689]
[1750780297327,6.94,144.44,144.39,42.88953564]
[1750780297328,6.94,144.44,144.43,29.76715732]
[1750780297530,30.12484114,144.49,144.43,29.76715732]
[1750780297826,25.03650629,144.49,144.45,10.97534689]
[1750780298031,18.11534689,144.49,144.45,10.97534689]
[1750780298234,7.14,144.49,144.45,10.97534689]
[1750780298937,7.14,144.49,144.43,43.02480884]
[1750780299141,7.14,144.49,144.47,10.97534689]
[1750780300121,7.14,144.49,144.47,17.89709242]
[1750780300322,7.14,144.49,144.48,10.97534689]
[1750780300930,7.14,144.49,144.47,6.92174553]
[1750780301127,7.14,144.49,144.48,10.97534689]
[1750780301520,7.14,144.49,144.47,10.97534689]
[1750780302109,7.14,144.49,144.47,17.89709765]
[1750780303115,7.14,144.49,144.47,10.97534689]
[1750780303630,7.14,144.49,144.45,10.97534689]
[1750780304010,14.06100762,144.49,144.44,10.97534689]
[1750780304210,10.97534689,144.48,144.44,10.97534689]
[1750780304630,6.92145006,144.48,144.43,6.92357941]
[1750780304834,17.89679695,144.48,144.43,6.92357941]
[1750780305025,17.89679695,144.48,144.42,18.64964886]
[1750780305026,10.97534689,144.47,144.42,10.97534689]
[1750780305223,10.97534689,144.47,144.43,10.97534689]
[1750780305533,6.92145006,144.48,144.43,10.97534689]
[1750780305741,10.97534689,144.47,144.43,10.97534689]
[1750780306115,10.97534689,144.48,144.41,7.06688977]
[1750780306329,10.97534689,144.47,144.42,10.97534689]
[1750780307226,20.14436447,144.49,144.42,17.89946652]
[1750780307424,10.97534689,144.47,144.43,10.97534689]
[1750780307622,10.97534689,144.47,144.42,17.89946652]
[1750780308234,36.97534689,144.46,144.41,17.89987933]
[1750780308634,36.97534689,144.46,144.42,10.97534689]